[Event "Titled Tuesday Blitz April 11 Late 2023"]
[White "Danielyan, Vahe"]
[Black "Leitao, Rafael"]
[WhiteFideId "13304828"]
[BlackFideId "2101246"]
[WhiteElo "2423"]
[BlackElo "2609"]
[Result "0-1"]
[Round "08"]
[TimeControl "180+2"]
[Date "2023.04.11"]
[WhiteClock "0:00:02"]
[BlackClock "0:00:20"]

1. e4 {[%clk 0:02:57]}  e5 {[%clk 0:02:59]} 2. Nc3 {[%clk 0:02:56]}  Nf6 {[%clk 0:02:57]} 3. g3 {[%clk 0:02:56]}  d5 {[%clk 0:02:56]} 4. exd5 {[%clk 0:02:57]}  Nxd5 {[%clk 0:02:57]} 5. Bg2 {[%clk 0:02:57]}  Nxc3 {[%clk 0:02:57]} 6. bxc3 {[%clk 0:02:58]}  Nc6 {[%clk 0:02:57]} 7. Ne2 {[%clk 0:02:58]}  Bd6 {[%clk 0:02:57]} 8. O-O {[%clk 0:02:58]}  O-O {[%clk 0:02:57]} 9. Rb1 {[%clk 0:02:57]}  Re8 {[%clk 0:02:53]} 10. d3 {[%clk 0:02:57]}  Na5 {[%clk 0:02:10]} 11. c4 {[%clk 0:02:55]}  c5 {[%clk 0:01:48]} 12. Nc3 {[%clk 0:02:52]}  Nc6 {[%clk 0:01:49]} 13. Ne4 {[%clk 0:02:51]}  Bf8 {[%clk 0:01:47]} 14. Be3 {[%clk 0:02:50]}  Nd4 {[%clk 0:01:42]} 15. Nc3 {[%clk 0:02:38]}  Rb8 {[%clk 0:01:37]} 16. Nd5 {[%clk 0:02:29]}  Bd7 {[%clk 0:01:29]} 17. Re1 {[%clk 0:02:11]}  Bc6 {[%clk 0:01:28]} 18. Bxd4 {[%clk 0:02:03]}  exd4 {[%clk 0:01:25]} 19. Rxe8 {[%clk 0:02:04]}  Qxe8 {[%clk 0:01:25]} 20. Qf3 {[%clk 0:01:59]}  Qd7 {[%clk 0:01:22]} 21. h4 {[%clk 0:01:56]}  Re8 {[%clk 0:01:16]} 22. Qf4 {[%clk 0:01:55]}  Bd6 {[%clk 0:01:13]} 23. Qg5 {[%clk 0:01:53]}  Kf8 {[%clk 0:01:03]} 24. Be4 {[%clk 0:01:07]}  h6 {[%clk 0:00:57]} 25. Qh5 {[%clk 0:01:04]}  Re5 {[%clk 0:00:56]} 26. Qf3 {[%clk 0:01:04]}  Kg8 {[%clk 0:00:56]} 27. g4 {[%clk 0:00:58]}  Qd8 {[%clk 0:00:55]} 28. Qh3 {[%clk 0:00:31]}  Qe8 {[%clk 0:00:52]} 29. Re1 {[%clk 0:00:26]}  Bxd5 {[%clk 0:00:51]} 30. cxd5 {[%clk 0:00:25]}  Re7 {[%clk 0:00:48]} 31. g5 {[%clk 0:00:23]}  hxg5 {[%clk 0:00:47]} 32. hxg5 {[%clk 0:00:23]}  g6 {[%clk 0:00:47]} 33. Kg2 {[%clk 0:00:24]}  Be5 {[%clk 0:00:40]} 34. d6 {[%clk 0:00:20]}  Bxd6 {[%clk 0:00:33]} 35. Rh1 {[%clk 0:00:20]}  Be5 {[%clk 0:00:32]} 36. Qh7+ {[%clk 0:00:15]}  Kf8 {[%clk 0:00:32]} 37. Rh3 {[%clk 0:00:13]}  Bg7 {[%clk 0:00:31]} 38. Bxg6 {[%clk 0:00:10]}  fxg6 {[%clk 0:00:28]} 39. Rf3+ {[%clk 0:00:09]}  Rf7 {[%clk 0:00:29]} 40. Rh3 {[%clk 0:00:02]}  Qe6 {[%clk 0:00:27]} 41. Qh4 {[%clk 0:00:02]}  Qd5+ {[%clk 0:00:25]} 42. Kg1 {[%clk 0:00:01]}  Qf5 {[%clk 0:00:22]} 43. Rh2 {[%clk 0:00:02]}  Qf4 {[%clk 0:00:20]} 44. Qxf4 {[%clk 0:00:01]}  Rxf4 {[%clk 0:00:20]} 45. Rg2 {[%clk 0:00:02]}  Rf5 {[%clk 0:00:20]} 46. Kf1 {[%clk 0:00:02]}  Be5 {[%clk 0:00:20]} 47. Ke2 {[%clk 0:00:02]}  Bf4 {[%clk 0:00:20]} 48. Rh2 {[%clk 0:00:02]}  Kg7 {[%clk 0:00:20]} 0-1


[Site "https://www.chess.com"]

[Event "Titled Tuesday Blitz April 11 Late 2023"]
[White "Kavutskiy, Konstantin"]
[Black "Remizov, Yaroslav"]
[WhiteFideId "2026384"]
[BlackFideId "34134015"]
[WhiteElo "2323"]
[BlackElo "2412"]
[Result "0-1"]
[Round "08"]
[TimeControl "180+2"]
[Date "2023.04.11"]
[WhiteClock "0:00:19"]
[BlackClock "0:00:05"]

1. d4 {[%clk 0:03:00]}  d5 {[%clk 0:02:37]} 2. c4 {[%clk 0:03:00]}  e6 {[%clk 0:02:35]} 3. Nf3 {[%clk 0:03:00]}  c6 {[%clk 0:02:35]} 4. Qc2 {[%clk 0:02:59]}  Nd7 {[%clk 0:02:29]} 5. Nc3 {[%clk 0:02:51]}  Ngf6 {[%clk 0:02:27]} 6. Bg5 {[%clk 0:02:46]}  dxc4 {[%clk 0:02:20]} 7. e4 {[%clk 0:02:45]}  b5 {[%clk 0:02:19]} 8. e5 {[%clk 0:02:44]}  h6 {[%clk 0:02:19]} 9. Bh4 {[%clk 0:02:43]}  g5 {[%clk 0:02:19]} 10. Nxg5 {[%clk 0:02:41]}  hxg5 {[%clk 0:02:19]} 11. Bxg5 {[%clk 0:02:42]}  Bh6 {[%clk 0:02:13]} 12. Bxh6 {[%clk 0:02:19]}  Rxh6 {[%clk 0:02:07]} 13. exf6 {[%clk 0:02:20]}  Nxf6 {[%clk 0:02:04]} 14. O-O-O {[%clk 0:02:17]}  Bb7 {[%clk 0:02:00]} 15. g3 {[%clk 0:02:10]}  Qb6 {[%clk 0:01:45]} 16. Bg2 {[%clk 0:02:09]}  O-O-O {[%clk 0:01:45]} 17. Qd2 {[%clk 0:02:08]}  Rg6 {[%clk 0:01:17]} 18. Qf4 {[%clk 0:02:02]}  b4 {[%clk 0:01:03]} 19. Na4 {[%clk 0:01:57]}  Qa5 {[%clk 0:01:03]} 20. b3 {[%clk 0:01:43]}  Nd5 {[%clk 0:00:56]} 21. Bxd5 {[%clk 0:01:41]}  Qxd5 {[%clk 0:00:53]} 22. Qxf7 {[%clk 0:01:36]}  Qf5 {[%clk 0:00:04]} 23. Qxf5 {[%clk 0:01:20]}  exf5 {[%clk 0:00:05]} 24. Nc5 {[%clk 0:01:20]}  c3 {[%clk 0:00:04]} 25. h4 {[%clk 0:01:13]}  a5 {[%clk 0:00:04]} 26. h5 {[%clk 0:01:11]}  Rh6 {[%clk 0:00:04]} 27. Rh4 {[%clk 0:01:09]}  Rdh8 {[%clk 0:00:04]} 28. Rdh1 {[%clk 0:01:08]}  Kc7 {[%clk 0:00:03]} 29. f3 {[%clk 0:01:03]}  Bc8 {[%clk 0:00:02]} 30. g4 {[%clk 0:01:03]}  fxg4 {[%clk 0:00:03]} 31. fxg4 {[%clk 0:01:04]}  Bxg4 {[%clk 0:00:04]} 32. Rxg4 {[%clk 0:01:03]}  Rxh5 {[%clk 0:00:05]} 33. Rg7+ {[%clk 0:00:57]}  Kc8 {[%clk 0:00:05]} 34. Rxh5 {[%clk 0:00:39]}  Rxh5 {[%clk 0:00:05]} 35. Rg2 {[%clk 0:00:39]}  Rh4 {[%clk 0:00:04]} 36. Ne6 {[%clk 0:00:38]}  Kd7 {[%clk 0:00:04]} 37. Re2 {[%clk 0:00:37]}  Kd6 {[%clk 0:00:04]} 38. Kc2 {[%clk 0:00:37]}  Kd5 {[%clk 0:00:03]} 39. Re5+ {[%clk 0:00:36]}  Kd6 {[%clk 0:00:03]} 40. Re2 {[%clk 0:00:28]}  Rg4 {[%clk 0:00:03]} 41. Kd3 {[%clk 0:00:27]}  Rg3+ {[%clk 0:00:03]} 42. Kc4 {[%clk 0:00:27]}  c2 {[%clk 0:00:03]} 43. Rxc2 {[%clk 0:00:19]}  Kxe6 {[%clk 0:00:04]} 44. Kc5 {[%clk 0:00:20]}  Rc3+ {[%clk 0:00:04]} 45. Rxc3 {[%clk 0:00:17]}  bxc3 {[%clk 0:00:04]} 46. Kxc6 {[%clk 0:00:18]}  c2 {[%clk 0:00:05]} 47. d5+ {[%clk 0:00:19]}  Ke5 {[%clk 0:00:05]} 0-1


[Site "https://www.chess.com"]

[Event "Titled Tuesday Blitz April 11 Late 2023"]
[White "Hasangatin, Ramil"]
[Black "Coenen, Michael"]
[WhiteFideId "4122160"]
[BlackFideId "4697367"]
[WhiteElo "2275"]
[BlackElo "2328"]
[Result "0-1"]
[Round "08"]
[TimeControl "180+2"]
[Date "2023.04.11"]
[WhiteClock "0:00:10"]
[BlackClock "0:00:54"]

1. e4 {[%clk 0:03:00]}  c5 {[%clk 0:02:59]} 2. Nf3 {[%clk 0:03:01]}  Nc6 {[%clk 0:03:00]} 3. Bb5 {[%clk 0:03:00]}  g6 {[%clk 0:03:00]} 4. O-O {[%clk 0:03:00]}  Bg7 {[%clk 0:03:00]} 5. c3 {[%clk 0:03:00]}  d6 {[%clk 0:03:01]} 6. d4 {[%clk 0:03:00]}  cxd4 {[%clk 0:03:01]} 7. cxd4 {[%clk 0:03:00]}  Bd7 {[%clk 0:03:02]} 8. Nc3 {[%clk 0:02:59]}  a6 {[%clk 0:03:02]} 9. Be2 {[%clk 0:02:53]}  Bg4 {[%clk 0:03:01]} 10. d5 {[%clk 0:02:51]}  Nb8 {[%clk 0:03:01]} 11. Be3 {[%clk 0:02:47]}  Nd7 {[%clk 0:03:01]} 12. Nd4 {[%clk 0:02:40]}  Bxe2 {[%clk 0:03:00]} 13. Qxe2 {[%clk 0:02:41]}  Ngf6 {[%clk 0:03:00]} 14. f3 {[%clk 0:02:35]}  O-O {[%clk 0:03:00]} 15. Rfc1 {[%clk 0:02:29]}  Rc8 {[%clk 0:03:00]} 16. Nb3 {[%clk 0:02:27]}  Ne5 {[%clk 0:02:46]} 17. Rc2 {[%clk 0:02:22]}  Nc4 {[%clk 0:02:45]} 18. Bd4 {[%clk 0:02:20]}  Nd7 {[%clk 0:02:43]} 19. Qf2 {[%clk 0:02:08]}  Bxd4 {[%clk 0:02:39]} 20. Qxd4 {[%clk 0:02:08]}  Qb6 {[%clk 0:02:35]} 21. Rac1 {[%clk 0:02:00]}  Ne3 {[%clk 0:02:08]} 22. Re2 {[%clk 0:01:48]}  Nc4 {[%clk 0:02:03]} 23. Qxb6 {[%clk 0:01:41]}  Ndxb6 {[%clk 0:02:00]} 24. Nd1 {[%clk 0:01:38]}  Ne5 {[%clk 0:01:56]} 25. Rec2 {[%clk 0:01:32]}  Nd3 {[%clk 0:01:52]} 26. Rxc8 {[%clk 0:01:28]}  Rxc8 {[%clk 0:01:53]} 27. Rxc8+ {[%clk 0:01:26]}  Nxc8 {[%clk 0:01:54]} 28. Na5 {[%clk 0:01:22]}  b6 {[%clk 0:01:47]} 29. Nc6 {[%clk 0:01:22]}  Kf8 {[%clk 0:01:46]} 30. Kf1 {[%clk 0:01:09]}  Ke8 {[%clk 0:01:42]} 31. a3 {[%clk 0:00:53]}  e6 {[%clk 0:01:34]} 32. g3 {[%clk 0:00:48]}  exd5 {[%clk 0:01:29]} 33. exd5 {[%clk 0:00:49]}  Ne7 {[%clk 0:01:29]} 34. Ke2 {[%clk 0:00:42]}  Nc1+ {[%clk 0:00:58]} 35. Kd2 {[%clk 0:00:42]}  Nxc6 {[%clk 0:00:59]} 36. Kxc1 {[%clk 0:00:25]}  Nd4 {[%clk 0:01:00]} 37. f4 {[%clk 0:00:19]}  Nf3 {[%clk 0:00:59]} 38. h3 {[%clk 0:00:14]}  Ng1 {[%clk 0:00:57]} 39. Nf2 {[%clk 0:00:14]}  Ne2+ {[%clk 0:00:56]} 40. Kd2 {[%clk 0:00:14]}  Nxg3 {[%clk 0:00:57]} 41. Ne4 {[%clk 0:00:10]}  Nxe4+ {[%clk 0:00:57]} 42. Ke3 {[%clk 0:00:10]}  Nf6 {[%clk 0:00:54]} 0-1


[Site "https://www.chess.com"]

[Event "Titled Tuesday Blitz April 11 Late 2023"]
[White "Oro, Faustino"]
[Black "Chos, Alexey"]
[WhiteFideId "20000197"]
[BlackFideId "14117762"]
[WhiteElo "1984"]
[BlackElo "2234"]
[Result "0-1"]
[Round "08"]
[TimeControl "180+2"]
[Date "2023.04.11"]
[WhiteClock "0:00:01"]
[BlackClock "0:00:22"]

1. e4 {[%clk 0:03:00]}  c6 {[%clk 0:02:59]} 2. d4 {[%clk 0:03:00]}  d5 {[%clk 0:03:00]} 3. e5 {[%clk 0:02:59]}  Bf5 {[%clk 0:03:00]} 4. h4 {[%clk 0:02:59]}  h5 {[%clk 0:02:59]} 5. Bd3 {[%clk 0:02:58]}  Bxd3 {[%clk 0:02:59]} 6. Qxd3 {[%clk 0:02:58]}  e6 {[%clk 0:03:00]} 7. Nf3 {[%clk 0:02:57]}  Qa5+ {[%clk 0:02:59]} 8. Nbd2 {[%clk 0:02:58]}  Qa6 {[%clk 0:03:00]} 9. c4 {[%clk 0:02:58]}  Nd7 {[%clk 0:03:00]} 10. b3 {[%clk 0:02:58]}  Ne7 {[%clk 0:02:59]} 11. O-O {[%clk 0:02:58]}  Nf5 {[%clk 0:02:59]} 12. Bb2 {[%clk 0:02:57]}  Be7 {[%clk 0:02:57]} 13. g3 {[%clk 0:02:57]}  Rd8 {[%clk 0:02:55]} 14. Qc2 {[%clk 0:02:46]}  Nb6 {[%clk 0:02:51]} 15. Rfe1 {[%clk 0:02:44]}  dxc4 {[%clk 0:02:51]} 16. bxc4 {[%clk 0:02:44]}  Qa4 {[%clk 0:02:49]} 17. Qc1 {[%clk 0:02:37]}  Bb4 {[%clk 0:02:43]} 18. c5 {[%clk 0:01:38]}  Nd5 {[%clk 0:02:37]} 19. Rd1 {[%clk 0:01:35]}  Bxd2 {[%clk 0:02:34]} 20. Nxd2 {[%clk 0:01:31]}  Nxd4 {[%clk 0:02:21]} 21. Bxd4 {[%clk 0:01:30]}  Qxd4 {[%clk 0:02:21]} 22. Nc4 {[%clk 0:01:31]}  Qg4 {[%clk 0:02:15]} 23. Nd6+ {[%clk 0:01:25]}  Ke7 {[%clk 0:02:15]} 24. Nxb7 {[%clk 0:01:23]}  Rd7 {[%clk 0:02:08]} 25. Nd6 {[%clk 0:01:19]}  Rb8 {[%clk 0:02:03]} 26. Qd2 {[%clk 0:01:01]}  f6 {[%clk 0:01:45]} 27. Rab1 {[%clk 0:00:49]}  Rxb1 {[%clk 0:01:40]} 28. Rxb1 {[%clk 0:00:49]}  fxe5 {[%clk 0:01:40]} 29. Rb8 {[%clk 0:00:46]}  e4 {[%clk 0:01:39]} 30. Qd4 {[%clk 0:00:34]}  Rd8 {[%clk 0:01:33]} 31. Rb7+ {[%clk 0:00:26]}  Rd7 {[%clk 0:01:32]} 32. Qb2 {[%clk 0:00:15]}  Rxb7 {[%clk 0:01:05]} 33. Qxb7+ {[%clk 0:00:15]}  Kf6 {[%clk 0:01:06]} 34. Qb2+ {[%clk 0:00:10]}  Kg6 {[%clk 0:01:04]} 35. Qe5 {[%clk 0:00:08]}  e3 {[%clk 0:00:58]} 36. Ne4 {[%clk 0:00:03]}  e2 {[%clk 0:00:41]} 37. Ng5 {[%clk 0:00:02]}  Nf4 {[%clk 0:00:29]} 38. Kh2 {[%clk 0:00:01]}  Nd3 {[%clk 0:00:22]} 0-1


[Site "https://www.chess.com"]

[Event "Titled Tuesday Blitz April 11 Late 2023"]
[White "Kula, Robert"]
[Black "Hambleton, Aman"]
[WhiteFideId "1101218"]
[BlackFideId "2606577"]
[WhiteElo "2180"]
[BlackElo "2511"]
[Result "0-1"]
[Round "08"]
[TimeControl "180+2"]
[Date "2023.04.11"]
[WhiteClock "0:00:05"]
[BlackClock "0:00:03"]

1. d4 {[%clk 0:03:00]}  e5 {[%clk 0:03:00]} 2. dxe5 {[%clk 0:03:00]}  Nc6 {[%clk 0:02:56]} 3. Nf3 {[%clk 0:03:00]}  Qe7 {[%clk 0:02:57]} 4. Nc3 {[%clk 0:02:59]}  Nxe5 {[%clk 0:02:57]} 5. Nd5 {[%clk 0:02:55]}  Nxf3+ {[%clk 0:02:56]} 6. gxf3 {[%clk 0:02:55]}  Qd8 {[%clk 0:02:57]} 7. Bf4 {[%clk 0:02:54]}  d6 {[%clk 0:02:57]} 8. e4 {[%clk 0:02:52]}  Nf6 {[%clk 0:02:46]} 9. Rg1 {[%clk 0:02:49]}  Be6 {[%clk 0:01:30]} 10. Bc4 {[%clk 0:02:33]}  c6 {[%clk 0:00:56]} 11. Ne3 {[%clk 0:02:28]}  Bxc4 {[%clk 0:00:49]} 12. Nxc4 {[%clk 0:02:28]}  d5 {[%clk 0:00:50]} 13. exd5 {[%clk 0:02:20]}  Nxd5 {[%clk 0:00:47]} 14. Qe2+ {[%clk 0:02:15]}  Qe7 {[%clk 0:00:30]} 15. Qxe7+ {[%clk 0:01:31]}  Bxe7 {[%clk 0:00:29]} 16. Bd6 {[%clk 0:01:22]}  Bf6 {[%clk 0:00:23]} 17. O-O-O {[%clk 0:01:17]}  O-O-O {[%clk 0:00:17]} 18. Bg3 {[%clk 0:01:07]}  Bg5+ {[%clk 0:00:10]} 19. Kb1 {[%clk 0:01:06]}  Bf4 {[%clk 0:00:10]} 20. Bxf4 {[%clk 0:01:02]}  Nxf4 {[%clk 0:00:10]} 21. Nd6+ {[%clk 0:01:02]}  Kc7 {[%clk 0:00:07]} 22. Nxf7 {[%clk 0:01:02]}  Rxd1+ {[%clk 0:00:07]} 23. Rxd1 {[%clk 0:01:02]}  Re8 {[%clk 0:00:04]} 24. Ng5 {[%clk 0:00:51]}  Re2 {[%clk 0:00:02]} 25. Ne4 {[%clk 0:00:51]}  h6 {[%clk 0:00:01]} 26. b3 {[%clk 0:00:49]}  Nd5 {[%clk 0:00:01]} 27. Kb2 {[%clk 0:00:48]}  Nf6 {[%clk 0:00:01]} 28. Rd2 {[%clk 0:00:44]}  Re1 {[%clk 0:00:01]} 29. Nc5 {[%clk 0:00:38]}  b6 {[%clk 0:00:01]} 30. Nd3 {[%clk 0:00:31]}  Rh1 {[%clk 0:00:01]} 31. Nf4 {[%clk 0:00:30]}  Rxh2 {[%clk 0:00:01]} 32. Ne6+ {[%clk 0:00:29]}  Kb7 {[%clk 0:00:02]} 33. Nxg7 {[%clk 0:00:29]}  h5 {[%clk 0:00:02]} 34. Nf5 {[%clk 0:00:26]}  Nd5 {[%clk 0:00:01]} 35. c4 {[%clk 0:00:25]}  Nf4 {[%clk 0:00:01]} 36. Kc3 {[%clk 0:00:16]}  Kc7 {[%clk 0:00:01]} 37. b4 {[%clk 0:00:15]}  h4 {[%clk 0:00:01]} 38. Nd6 {[%clk 0:00:12]}  h3 {[%clk 0:00:01]} 39. Ne8+ {[%clk 0:00:12]}  Kc8 {[%clk 0:00:02]} 40. Nd6+ {[%clk 0:00:12]}  Kb8 {[%clk 0:00:02]} 41. c5 {[%clk 0:00:11]}  Rg2 {[%clk 0:00:03]} 42. Nf7 {[%clk 0:00:09]}  Nd5+ {[%clk 0:00:02]} 43. Kc4 {[%clk 0:00:07]}  h2 {[%clk 0:00:03]} 44. Rd1 {[%clk 0:00:05]}  Rg1 {[%clk 0:00:03]} 0-1


[Site "https://www.chess.com"]

[Event "Titled Tuesday Blitz April 11 Late 2023"]
[White "Howell, David W L"]
[Black "Shapiro, Viktor"]
[WhiteFideId "410608"]
[BlackFideId "4175700"]
[WhiteElo "2567"]
[BlackElo "2152"]
[Result "1-0"]
[Round "08"]
[TimeControl "180+2"]
[Date "2023.04.11"]
[WhiteClock "0:00:02"]
[BlackClock "0:00:01"]

1. d4 {[%clk 0:02:46]}  Nf6 {[%clk 0:02:59]} 2. Nd2 {[%clk 0:02:47]}  d5 {[%clk 0:02:59]} 3. Ngf3 {[%clk 0:02:45]}  Bf5 {[%clk 0:02:59]} 4. c4 {[%clk 0:02:41]}  c6 {[%clk 0:02:57]} 5. Nh4 {[%clk 0:02:30]}  Be6 {[%clk 0:02:44]} 6. e3 {[%clk 0:02:27]}  Nbd7 {[%clk 0:02:39]} 7. Be2 {[%clk 0:02:22]}  g6 {[%clk 0:02:39]} 8. O-O {[%clk 0:02:22]}  Bg7 {[%clk 0:02:39]} 9. b4 {[%clk 0:02:09]}  a5 {[%clk 0:02:38]} 10. b5 {[%clk 0:01:49]}  Ne4 {[%clk 0:02:29]} 11. Nxe4 {[%clk 0:01:25]}  dxe4 {[%clk 0:02:29]} 12. bxc6 {[%clk 0:01:26]}  bxc6 {[%clk 0:02:29]} 13. Rb1 {[%clk 0:01:24]}  f5 {[%clk 0:02:19]} 14. Qa4 {[%clk 0:01:06]}  Qc7 {[%clk 0:02:06]} 15. Ba3 {[%clk 0:01:01]}  O-O {[%clk 0:01:45]} 16. Bxe7 {[%clk 0:00:58]}  Rfe8 {[%clk 0:01:44]} 17. Bg5 {[%clk 0:00:54]}  c5 {[%clk 0:01:27]} 18. d5 {[%clk 0:00:32]}  Bf7 {[%clk 0:01:26]} 19. f3 {[%clk 0:00:33]}  h6 {[%clk 0:01:20]} 20. Bf4 {[%clk 0:00:31]}  Qd8 {[%clk 0:01:21]} 21. fxe4 {[%clk 0:00:31]}  Rxe4 {[%clk 0:01:13]} 22. Rb7 {[%clk 0:00:29]}  Ne5 {[%clk 0:00:57]} 23. Nf3 {[%clk 0:00:26]}  Ng4 {[%clk 0:00:45]} 24. Bd3 {[%clk 0:00:21]}  Re8 {[%clk 0:00:32]} 25. Re1 {[%clk 0:00:20]}  Qf6 {[%clk 0:00:26]} 26. h3 {[%clk 0:00:16]}  g5 {[%clk 0:00:19]} 27. hxg4 {[%clk 0:00:09]}  gxf4 {[%clk 0:00:20]} 28. Bxf5 {[%clk 0:00:09]}  fxe3 {[%clk 0:00:15]} 29. Qc6 {[%clk 0:00:05]}  Qc3 {[%clk 0:00:08]} 30. Qc7 {[%clk 0:00:04]}  Rf8 {[%clk 0:00:07]} 31. Be6 {[%clk 0:00:02]}  Bxe6 {[%clk 0:00:06]} 32. dxe6 {[%clk 0:00:01]}  Rae8 {[%clk 0:00:06]} 33. Re2 {[%clk 0:00:01]}  Kh8 {[%clk 0:00:04]} 34. Qc6 {[%clk 0:00:01]}  Rd8 {[%clk 0:00:02]} 35. e7 {[%clk 0:00:01]}  Rd1+ {[%clk 0:00:02]} 36. Kh2 {[%clk 0:00:02]}  Be5+ {[%clk 0:00:01]} 37. Nxe5 {[%clk 0:00:01]}  Qxe5+ {[%clk 0:00:01]} 38. g3 {[%clk 0:00:02]} 1-0


[Site "https://www.chess.com"]

[Event "Titled Tuesday Blitz April 11 Late 2023"]
[White "Goroshkov, Maksym"]
[Black "Bolourchifard, Farzad"]
[WhiteFideId "14142716"]
[BlackFideId "12510084"]
[WhiteElo "2322"]
[BlackElo "2317"]
[Result "0-1"]
[Round "08"]
[TimeControl "180+2"]
[Date "2023.04.11"]
[WhiteClock "0:01:01"]
[BlackClock "0:00:23"]

1. e4 {[%clk 0:02:57]}  e5 {[%clk 0:03:00]} 2. d4 {[%clk 0:02:57]}  exd4 {[%clk 0:03:00]} 3. c3 {[%clk 0:02:57]}  d5 {[%clk 0:03:00]} 4. e5 {[%clk 0:02:56]}  dxc3 {[%clk 0:02:57]} 5. Nxc3 {[%clk 0:02:56]}  c6 {[%clk 0:02:56]} 6. Nf3 {[%clk 0:02:55]}  Be7 {[%clk 0:02:53]} 7. Bd3 {[%clk 0:02:52]}  Be6 {[%clk 0:02:52]} 8. O-O {[%clk 0:02:51]}  Nd7 {[%clk 0:02:52]} 9. Bf4 {[%clk 0:02:50]}  Qb6 {[%clk 0:02:42]} 10. b3 {[%clk 0:02:39]}  Nc5 {[%clk 0:02:31]} 11. Be3 {[%clk 0:02:33]}  Qb4 {[%clk 0:02:28]} 12. Rc1 {[%clk 0:02:29]}  Nxd3 {[%clk 0:02:27]} 13. Qxd3 {[%clk 0:02:30]}  Qa5 {[%clk 0:02:03]} 14. Nd4 {[%clk 0:02:26]}  Ba3 {[%clk 0:02:01]} 15. Rc2 {[%clk 0:02:22]}  Ne7 {[%clk 0:02:00]} 16. f4 {[%clk 0:02:06]}  g6 {[%clk 0:01:57]} 17. h3 {[%clk 0:01:59]}  Nf5 {[%clk 0:01:45]} 18. g4 {[%clk 0:01:52]}  Nxe3 {[%clk 0:01:42]} 19. Qxe3 {[%clk 0:01:53]}  c5 {[%clk 0:01:02]} 20. Ndb5 {[%clk 0:01:52]}  d4 {[%clk 0:01:00]} 21. Qe4 {[%clk 0:01:52]}  dxc3 {[%clk 0:00:56]} 22. Qxb7 {[%clk 0:01:52]}  O-O {[%clk 0:00:53]} 23. f5 {[%clk 0:01:50]}  Rab8 {[%clk 0:00:50]} 24. Qxa7 {[%clk 0:01:34]}  Qxb5 {[%clk 0:00:41]} 25. Qxa3 {[%clk 0:01:34]}  Qd3 {[%clk 0:00:40]} 26. Rg2 {[%clk 0:01:30]}  Bd5 {[%clk 0:00:40]} 27. Qxc5 {[%clk 0:01:22]}  Bxg2 {[%clk 0:00:39]} 28. Kxg2 {[%clk 0:01:23]}  Rbc8 {[%clk 0:00:36]} 29. Qf2 {[%clk 0:01:15]}  c2 {[%clk 0:00:34]} 30. Rc1 {[%clk 0:01:13]}  Qd1 {[%clk 0:00:34]} 31. Qf4 {[%clk 0:01:10]}  Rfd8 {[%clk 0:00:32]} 32. e6 {[%clk 0:01:03]}  fxe6 {[%clk 0:00:31]} 33. fxg6 {[%clk 0:01:01]}  Qd2+ {[%clk 0:00:31]} 34. Kg3 {[%clk 0:01:00]}  Rd3+ {[%clk 0:00:30]} 35. Kh4 {[%clk 0:01:00]}  Qxf4 {[%clk 0:00:30]} 36. gxh7+ {[%clk 0:01:01]}  Kxh7 {[%clk 0:00:30]} 37. Rxc2 {[%clk 0:01:01]}  Qh6# {[%clk 0:00:23]} 0-1


[Site "https://www.chess.com"]

[Event "Titled Tuesday Blitz April 11 Late 2023"]
[White "Przybylski, Wojciech"]
[Black "Kleiman, Jake"]
[WhiteFideId "1117599"]
[BlackFideId "2020041"]
[WhiteElo "2222"]
[BlackElo "2399"]
[Result "0-1"]
[Round "08"]
[TimeControl "180+2"]
[Date "2023.04.11"]
[WhiteClock "0:00:56"]
[BlackClock "0:01:37"]

1. e4 {[%clk 0:02:55]}  e5 {[%clk 0:02:59]} 2. Nf3 {[%clk 0:02:54]}  Nc6 {[%clk 0:02:53]} 3. d4 {[%clk 0:02:53]}  exd4 {[%clk 0:02:53]} 4. Nxd4 {[%clk 0:02:54]}  Bb4+ {[%clk 0:02:53]} 5. c3 {[%clk 0:02:52]}  Bc5 {[%clk 0:02:54]} 6. Nb3 {[%clk 0:02:51]}  Bb6 {[%clk 0:02:54]} 7. Qg4 {[%clk 0:02:46]}  Nf6 {[%clk 0:02:50]} 8. Qxg7 {[%clk 0:02:32]}  Rg8 {[%clk 0:02:50]} 9. Qh6 {[%clk 0:02:31]}  Bxf2+ {[%clk 0:02:51]} 10. Kd1 {[%clk 0:02:28]}  Rg6 {[%clk 0:02:33]} 11. Qf4 {[%clk 0:02:22]}  Bb6 {[%clk 0:02:32]} 12. Bc4 {[%clk 0:02:14]}  d5 {[%clk 0:02:26]} 13. exd5 {[%clk 0:01:46]}  Nxd5 {[%clk 0:02:25]} 14. Re1+ {[%clk 0:01:45]}  Ne3+ {[%clk 0:02:08]} 15. Ke2 {[%clk 0:01:34]}  Rxg2+ {[%clk 0:02:03]} 16. Kf3 {[%clk 0:01:33]}  Bg4+ {[%clk 0:01:59]} 17. Qxg4 {[%clk 0:01:10]}  Rxg4 {[%clk 0:01:59]} 18. Bxe3 {[%clk 0:01:06]}  Ne5+ {[%clk 0:01:48]} 19. Kf2 {[%clk 0:00:56]}  Qf6+ {[%clk 0:01:37]} 0-1


[Site "https://www.chess.com"]